Workbook

Sheet Sheet1
E1: 2015-10-31
A6: COMPANY A | C6: Rephase/Adjust for Forecast | BA6: Month List
A7: Profit and Loss Account | BA7: 2015-07-01
A8: GBP | D8: 2015-08-31 | E8: 2015-09-30 | F8: 2015-10-31 | G8: 2015-11-30 | H8: 2015-12-31 | I8: 2016-01-31 | J8: 2016-02-29 | K8: 2016-03-31 | L8: 2016-04-30 | M8: 2016-05-31 | N8: 2016-06-30 | O8: 2016-07-31 | P8: 2016-08-31 | Q8: 2016-09-30 | R8: 2016-10-31 | S8: 2016-11-30 | T8: 2016-12-31 | U8: 2017-01-31 | V8: 2017-02-28 | W8: 2017-03-31 | X8: 2017-04-30 | Y8: 2017-05-31 | Z8: 2017-06-30 | AA8: 2017-07-31 | AB8: =IF(AB9<>"",(EOMONTH(AA8,1)),"") ->  | AC8: =IF(AC9<>"",(EOMONTH(AB8,1)),"") ->  | BA8: 2015-08-31
A9: HPP | B9: Months | D9: 1 | E9: =D9+1 -> 2 | F9: =E9+1 -> 3 | G9: 4 | H9: 5 | I9: 6 | J9: 7 | K9: 8 | L9: 9 | M9: 10 | N9: 11 | O9: 12 | P9: 13 | Q9: 14 | R9: 15 | S9: 16 | T9: 17 | U9: 18 | V9: 19 | W9: 20 | X9: 21 | Y9: 22 | Z9: 23 | AA9: 24 | BA9: 2015-09-30
A10: M123 | B10: CE | BA10: 2015-10-31
A11: S123 | B11: CE | BA11: 2015-11-30
BA12: 2015-12-31
A13: S0010 | B13: AW | D13: 86 | E13: 86 | F13: 86 | G13: 86 | H13: 86 | I13: 86 | J13: 86 | K13: 86 | L13: 86 | M13: 86 | N13: 86 | O13: 86 | P13: 86 | Q13: 86 | R13: 86 | S13: 86 | T13: 86 | U13: 86 | V13: 86 | W13: 86 | X13: 86 | Y13: 86 | Z13: 86 | AA13: 86 | BA13: 2016-01-31
A14: S0020 | B14: OW | D14: 8.6 | E14: 15.6 | F14: 22.6 | G14: 29.6 | H14: 36.6 | I14: 43.6 | J14: 50.6 | K14: 57.6 | L14: 64.6 | M14: 71.6 | N14: 77.4 | O14: 77.4 | P14: 77.4 | Q14: 77.4 | R14: 77.4 | S14: 77.4 | T14: 77.4 | U14: 77.4 | V14: 77.4 | W14: 77.4 | X14: 77.4 | Y14: 77.4 | Z14: 77.4 | AA14: 77.4 | BA14: 2016-02-29
A15: S0030 | B15: OC | D15: =IFERROR(D14/D13,"") -> 0.1 | E15: =IFERROR(E14/E13,"") -> 0.1813953488 | F15: 0.2627906977 | G15: 0.3441860465 | H15: 0.4255813953 | I15: 0.5069767442 | J15: 0.588372093 | K15: 0.6697674419 | L15: 0.7511627907 | M15: 0.8325581395 | N15: 0.9 | O15: 0.9 | P15: 0.9 | Q15: 0.9 | R15: 0.9 | S15: 0.9 | T15: 0.9 | U15: 0.9 | V15: 0.9 | W15: 0.9 | X15: 0.9 | Y15: 0.9 | Z15: 0.9 | AA15: 0.9 | BA15: 2016-03-31
A16: S0035F | B16: OCW | D16: =IFERROR(D14-C14,"") -> 8.6 | E16: =IFERROR(E14-D14,"") -> 7 | F16: 7 | G16: 7 | H16: 7 | I16: 7 | J16: 7 | K16: 7 | L16: 7 | M16: 7 | N16: 5.8 | O16: 0 | P16: 0 | Q16: 0 | R16: 0 | S16: 0 | T16: 0 | U16: 0 | V16: 0 | W16: 0 | X16: 0 | Y16: 0 | Z16: 0 | AA16: 0 | BA16: 2016-04-30
A17: S0905 | B17: WIPOW | D17: 213.5094524 | E17: 215.7808296 | F17: 218.0522067 | G17: 220.3235839 | H17: 222.594961 | I17: 224.8663382 | J17: 227.1377153 | K17: 229.4090925 | L17: 231.6804697 | M17: 233.9518468 | N17: 236.223224 | O17: 238.4946011 | P17: 234.8603977 | Q17: 237.3589125 | R17: 239.8574274 | S17: 242.3559423 | T17: 244.8544571 | U17: 247.352972 | V17: 249.8514869 | W17: 252.3500017 | X17: 254.8485166 | Y17: 257.3470315 | Z17: 259.8455464 | AA17: 262.3440612 | BA17: 2016-05-31
A18: S0900 | B18: RevPOW | D18: =IFERROR(D30/D14,0) -> 81.60533948 | E18: 85.49972836 | F18: 87.1970505 | G18: 88.25603568 | H18: 89.04294281 | I18: 89.68881866 | J18: 90.252194 | K18: 90.76314713 | L18: 91.23871934 | M18: 91.68928771 | N18: 92.23066814 | O18: 94.00803844 | P18: 94.75681727 | Q18: 95.68957764 | R18: 96.62233802 | S18: 97.55509839 | T18: 98.48785876 | U18: 98.56281421 | V18: 98.63776966 | W18: 98.7127251 | X18: 98.78768055 | Y18: 98.86263599 | Z18: 98.93759144 | AA18: 99.01254689 | BA18: 2016-06-30
B19: NC | C19: =IF(C9=1,1,"") ->  | I19: =IF(K9=1,1,"") ->  | Z19: =IF(#REF!=1,1,"") ->  | AA19: =IF(#REF!=1,1,"") ->  | BA19: 2016-07-31
A20: P19999 | B20: OF | BA20: 2016-08-31
A21: P19999 | B21: MVC | D21: 55.08543873 | E21: 100.9854282 | F21: 147.8393962 | G21: 195.6473425 | H21: 244.4092672 | I21: 294.1251704 | J21: 344.7950519 | K21: 396.4189118 | L21: 448.9967502 | M21: 502.5285669 | N21: 548.510326 | O21: 553.7844638 | P21: 545.3458434 | Q21: 551.1473949 | R21: 556.9489464 | S21: 562.750498 | T21: 568.5520495 | U21: 574.353601 | V21: 580.1551525 | W21: 585.9567041 | X21: 591.7582556 | Y21: 597.5598071 | Z21: 603.3613586 | AA21: 609.1629102 | BA21: 2016-09-30
A22: P19999 | B22: PST | D22: 0 | E22: 0 | F22: 0 | G22: 0 | H22: 0 | I22: 0 | J22: 0 | K22: 0 | L22: 0 | M22: 0 | N22: 0 | O22: 0 | P22: 0 | Q22: 0 | R22: 0 | S22: 0 | T22: 0 | U22: 0 | V22: 0 | W22: 0 | X22: 0 | Y22: 0 | Z22: 0 | AA22: 0 | BA22: 2016-10-31
A23: P19999 | B23: TEE | D23: 210.3644687 | E23: 381.5913618 | F23: 552.8182549 | G23: 724.045148 | H23: 895.2720411 | I23: 1066.498934 | J23: 1237.725827 | K23: 1408.95272 | L23: 1580.179614 | M23: 1751.406507 | N23: 1893.280218 | O23: 1893.280218 | P23: 1893.280218 | Q23: 1893.280218 | R23: 1893.280218 | S23: 1893.280218 | T23: 1893.280218 | U23: 1893.280218 | V23: 1893.280218 | W23: 1893.280218 | X23: 1893.280218 | Y23: 1893.280218 | Z23: 1893.280218 | AA23: 1893.280218 | BA23: 2016-11-30
A24: P19999 | B24: CIS | D24: 210.3644687 | E24: 381.5913618 | F24: 552.8182549 | G24: 724.045148 | H24: 895.2720411 | I24: 1066.498934 | J24: 1237.725827 | K24: 1408.95272 | L24: 1580.179614 | M24: 1751.406507 | N24: 1893.280218 | O24: 1893.280218 | P24: 1893.280218 | Q24: 1893.280218 | R24: 1893.280218 | S24: 1893.280218 | T24: 1893.280218 | U24: 1893.280218 | V24: 1893.280218 | W24: 1893.280218 | X24: 1893.280218 | Y24: 1893.280218 | Z24: 1893.280218 | AA24: 1893.280218 | BA24: 2016-12-31
A25: P19999 | B25: CSC | D25: 225.9915435 | E25: 414.2991928 | F25: 606.5205996 | G25: 802.6557641 | H25: 1002.704686 | I25: 1206.667366 | J25: 1414.543803 | K25: 1626.333997 | L25: 1842.037949 | M25: 2061.655659 | N25: 2250.298773 | O25: 2271.936262 | P25: 2271.936262 | Q25: 2271.936262 | R25: 2271.936262 | S25: 2271.936262 | T25: 2271.936262 | U25: 2271.936262 | V25: 2271.936262 | W25: 2271.936262 | X25: 2271.936262 | Y25: 2271.936262 | Z25: 2271.936262 | AA25: 2271.936262 | BA25: 2017-01-31
A26: P19999 | B26: RVO | D26: 0 | E26: 55.32841784 | F26: 110.6568357 | G26: 165.9852535 | H26: 221.3136714 | I26: 276.6420892 | J26: 331.970507 | K26: 387.2989249 | L26: 442.6273427 | M26: 497.9557606 | N26: 553.2841784 | O26: 663.9410141 | P26: 730.3351155 | Q26: 796.7292169 | R26: 863.1233183 | S26: 929.5174197 | T26: 995.9115211 | U26: 995.9115211 | V26: 995.9115211 | W26: 995.9115211 | X26: 995.9115211 | Y26: 995.9115211 | Z26: 995.9115211 | AA26: 995.9115211 | BA26: 2017-02-28
A27: P19999 | B27: CRV | BA27: 2017-03-31
A28: P19999 | B28: FRV | D28: 0 | E28: 0 | F28: 0 | G28: 0 | H28: 0 | I28: 0 | J28: 0 | K28: 0 | L28: 0 | M28: 0 | N28: 0 | O28: 0 | P28: 0 | Q28: 0 | R28: 0 | S28: 0 | T28: 0 | U28: 0 | V28: 0 | W28: 0 | X28: 0 | Y28: 0 | Z28: 0 | AA28: 0 | BA28: 2017-04-30
A29: P19999 | B29: ORV | BA29: 2017-05-31
A30: P19999 | B30: TRV | D30: =SUM(D20:D29) -> 701.8059196 | E30: =SUM(E20:E29) -> 1333.795762 | F30: 1970.653341 | G30: 2612.378656 | H30: 3258.971707 | I30: 3910.432494 | J30: 4566.761016 | K30: 5227.957275 | L30: 5894.021269 | M30: 6564.953 | N30: 7138.653714 | O30: 7276.222176 | P30: 7334.177657 | Q30: 7406.37331 | R30: 7478.568963 | S30: 7550.764615 | T30: 7622.960268 | U30: 7628.76182 | V30: 7634.563371 | W30: 7640.364923 | X30: 7646.166474 | Y30: 7651.968026 | Z30: 7657.769578 | AA30: 7663.571129 | BA30: 2017-06-30
BA31: 2017-07-31
A32: P20000 | B32: PCS | D32: 1499.117308 | E32: 1582.280159 | F32: 1666.617137 | G32: 1752.128242 | H32: 1838.813475 | I32: 1926.672835 | J32: 2015.706322 | K32: 2105.913937 | L32: 2197.295679 | M32: 2289.851548 | N32: 2373.115038 | O32: 2406.276841 | P32: 2432.947397 | Q32: 2459.617953 | R32: 2486.288509 | S32: 2512.959065 | T32: 2539.629621 | U32: 2566.300177 | V32: 2592.970733 | W32: 2619.64129 | X32: 2646.311846 | Y32: 2672.982402 | Z32: 2699.652958 | AA32: 2726.323514 | BA32: 2017-08-31
B33: PM% | D33: =IFERROR(D32/D30,"") -> 2.1360853 | E33: =IFERROR(E32/E30,"") -> 1.186298685 | F33: 0.8457180683 | G33: 0.67070225 | H33: 0.5642311872 | I33: 0.4927007021 | J33: 0.4413864258 | K33: 0.4028177405 | L33: 0.3728007719 | M33: 0.3487993818 | N33: 0.3324317348 | O33: 0.330704146 | P33: 0.3317273607 | Q33: 0.3320947851 | R33: 0.3324551156 | S33: 0.3328085556 | T33: 0.3331553008 | U33: 0.3363979946 | V33: 0.3396357601 | W33: 0.3428686085 | X33: 0.3460965511 | Y33: 0.3493195989 | Z33: 0.3525377632 | AA33: 0.355751055
A35: P21699 | B35: CPS | D35: 5942.643359 | E35: 5942.643359 | F35: 5942.643359 | G35: 5942.643359 | H35: 5942.643359 | I35: 5942.643359 | J35: 5942.643359 | K35: 6546.0347 | L35: 6546.0347 | M35: 6546.0347 | N35: 6546.0347 | O35: 6546.0347 | P35: 6873.336435 | Q35: 6873.336435 | R35: 6873.336435 | S35: 6873.336435 | T35: 6873.336435 | U35: 6873.336435 | V35: 6873.336435 | W35: 6873.336435 | X35: 6873.336435 | Y35: 6873.336435 | Z35: 6873.336435 | AA35: 6873.336435
A36: P23299 | B36: TRC | D36: 0 | E36: 0 | F36: 0 | G36: 0 | H36: 0 | I36: 0 | J36: 0 | K36: 0 | L36: 0 | M36: 0 | N36: 0 | O36: 0 | P36: 0 | Q36: 0 | R36: 0 | S36: 0 | T36: 0 | U36: 0 | V36: 0 | W36: 0 | X36: 0 | Y36: 0 | Z36: 0 | AA36: 0
B37: OFC | D37: 507.8682834 | E37: 661.2666364 | F37: 663.7127349 | G37: 666.1588333 | H37: 668.6049318 | I37: 671.0510303 | J37: 673.4971287 | K37: 675.9432272 | L37: 678.3893257 | M37: 680.8354242 | N37: 682.8621915 | O37: 682.8621915 | P37: 683.9440659 | Q37: 683.9440659 | R37: 683.9440659 | S37: 683.9440659 | T37: 683.9440659 | U37: 683.9440659 | V37: 683.9440659 | W37: 683.9440659 | X37: 683.9440659 | Y37: 683.9440659 | Z37: 683.9440659 | AA37: 683.9440659
B38: CMC | D38: 45.35765454 | E38: 45.35765454 | F38: 45.35765454 | G38: 45.35765454 | H38: 45.35765454 | I38: 45.35765454 | J38: 45.35765454 | K38: 45.35765454 | L38: 45.35765454 | M38: 45.35765454 | N38: 45.35765454 | O38: 45.35765454 | P38: 45.35765454 | Q38: 45.35765454 | R38: 45.35765454 | S38: 45.35765454 | T38: 45.35765454 | U38: 45.35765454 | V38: 45.35765454 | W38: 45.35765454 | X38: 45.35765454 | Y38: 45.35765454 | Z38: 45.35765454 | AA38: 45.35765454
B39: EQR | D39: 0 | E39: 0 | F39: 0 | G39: 0 | H39: 0 | I39: 0 | J39: 0 | K39: 0 | L39: 0 | M39: 0 | N39: 0 | O39: 0 | P39: 0 | Q39: 0 | R39: 0 | S39: 0 | T39: 0 | U39: 0 | V39: 0 | W39: 0 | X39: 0 | Y39: 0 | Z39: 0 | AA39: 0
A40: P23399 | B40: CFC | D40: =IFERROR(D37+D38+D39,"") -> 553.225938 | E40: =IFERROR(E37+E38+E39,"") -> 706.6242909 | F40: 709.0703894 | G40: 711.5164879 | H40: 713.9625863 | I40: 716.4086848 | J40: 718.8547833 | K40: 721.3008818 | L40: 723.7469802 | M40: 726.1930787 | N40: 728.219846 | O40: 728.219846 | P40: 729.3017204 | Q40: 729.3017204 | R40: 729.3017204 | S40: 729.3017204 | T40: 729.3017204 | U40: 729.3017204 | V40: 729.3017204 | W40: 729.3017204 | X40: 729.3017204 | Y40: 729.3017204 | Z40: 729.3017204 | AA40: 729.3017204
B41: Ovo | D41: 366.5344159 | E41: 390.7199066 | F41: 415.3087344 | G41: 440.3008995 | H41: 465.6964017 | I41: 491.4952411 | J41: 517.6974176 | K41: 544.3029314 | L41: 571.3117823 | M41: 598.7239704 | N41: 622.2290732 | O41: 625.6761767 | P41: 636.9228634 | Q41: 639.8442511 | R41: 642.7656389 | S41: 645.6870266 | T41: 648.6084144 | U41: 650.799467 | V41: 652.9905196 | W41: 655.1815722 | X41: 657.3726249 | Y41: 659.5636775 | Z41: 661.7547301 | AA41: 663.9457828
B42: BFE | D42: 0 | E42: 0 | F42: 0 | G42: 0 | H42: 0 | I42: 0 | J42: 0 | K42: 0 | L42: 0 | M42: 0 | N42: 0 | O42: 0 | P42: 0 | Q42: 0 | R42: 0 | S42: 0 | T42: 0 | U42: 0 | V42: 0 | W42: 0 | X42: 0 | Y42: 0 | Z42: 0 | AA42: 0
A43: P21999 | B43: COC | D43: =IFERROR(D41+D42,"") -> 366.5344159 | E43: =IFERROR(E41+E42,"") -> 390.7199066 | F43: 415.3087344 | G43: 440.3008995 | H43: 465.6964017 | I43: 491.4952411 | J43: 517.6974176 | K43: 544.3029314 | L43: 571.3117823 | M43: 598.7239704 | N43: 622.2290732 | O43: 625.6761767 | P43: 636.9228634 | Q43: 639.8442511 | R43: 642.7656389 | S43: 645.6870266 | T43: 648.6084144 | U43: 650.799467 | V43: 652.9905196 | W43: 655.1815722 | X43: 657.3726249 | Y43: 659.5636775 | Z43: 661.7547301 | AA43: 663.9457828
A44: 21905 | B44: BDD | D44: 12.68993605 | E44: 23.49988352 | F44: 34.49316607 | G44: 45.6697837 | H44: 57.0297364 | I44: 68.57302419 | J44: 80.29964706 | K44: 92.20960501 | L44: 104.302898 | M44: 116.5795262 | N44: 127.1116562 | O44: 128.6785215 | P44: 127.5618622 | Q44: 128.8897657 | R44: 130.2176692 | S44: 131.5455727 | T44: 132.8734763 | U44: 133.8694093 | V44: 134.8653423 | W44: 135.8612753 | X44: 136.8572083 | Y44: 137.8531413 | Z44: 138.8490743 | AA44: 139.8450073
D45: 2209.434685 | E45: 2209.434685 | F45: 2209.434685 | G45: 2344.184805 | H45: 2344.184805 | I45: 2344.184805 | J45: 2344.184805 | K45: 2344.184805 | L45: 2344.184805 | M45: 2344.184805 | N45: 2344.184805 | O45: 2344.184805 | P45: 2344.184805 | Q45: 2344.184805 | R45: 2344.184805 | S45: 2344.184805 | T45: 2344.184805 | U45: 2344.184805 | V45: 2344.184805 | W45: 2344.184805 | X45: 2344.184805 | Y45: 2344.184805 | Z45: 2344.184805 | AA45: 2344.184805
D46: 0 | E46: 0 | F46: 0 | G46: 0 | H46: 0 | I46: 0 | J46: 0 | K46: 0 | L46: 0 | M46: 0 | N46: 0 | O46: 0 | P46: 0 | Q46: 0 | R46: 0 | S46: 0 | T46: 0 | U46: 0 | V46: 0 | W46: 0 | X46: 0 | Y46: 0 | Z46: 0 | AA46: 0
D47: 0 | E47: 0 | F47: 0 | G47: 0 | H47: 0 | I47: 0 | J47: 0 | K47: 0 | L47: 0 | M47: 0 | N47: 0 | O47: 0 | P47: 0 | Q47: 0 | R47: 0 | S47: 0 | T47: 0 | U47: 0 | V47: 0 | W47: 0 | X47: 0 | Y47: 0 | Z47: 0 | AA47: 0
A48: P23599 | B48: DOA | D48: =IFERROR(SUM(D45:D47),"") -> 2209.434685 | E48: =IFERROR(SUM(E45:E47),"") -> 2209.434685 | F48: 2209.434685 | G48: 2344.184805 | H48: 2344.184805 | I48: 2344.184805 | J48: 2344.184805 | K48: 2344.184805 | L48: 2344.184805 | M48: 2344.184805 | N48: 2344.184805 | O48: 2344.184805 | P48: 2344.184805 | Q48: 2344.184805 | R48: 2344.184805 | S48: 2344.184805 | T48: 2344.184805 | U48: 2344.184805 | V48: 2344.184805 | W48: 2344.184805 | X48: 2344.184805 | Y48: 2344.184805 | Z48: 2344.184805 | AA48: 2344.184805
A49: P23699 | B49: OCS
A50: P22959 | B50: CC | D50: =IFERROR(D35+D36+D40+D43+D44+D48+D49,"") -> 9084.528334 | E50: =IFERROR(E35+E36+E40+E43+E44+E48+E49,"") -> 9272.922125 | F50: 9310.950334 | G50: 9484.315335 | H50: 9523.516888 | I50: 9563.305114 | J50: 9603.680012 | K50: 10248.03292 | L50: 10289.58117 | M50: 10331.71608 | N50: 10367.78008 | O50: 10372.79405 | P50: 10711.30769 | Q50: 10715.55698 | R50: 10719.80627 | S50: 10724.05556 | T50: 10728.30485 | U50: 10731.49184 | V50: 10734.67882 | W50: 10737.86581 | X50: 10741.05279 | Y50: 10744.23978 | Z50: 10747.42676 | AA50: 10750.61375
B51: %RE | D51: =IFERROR(D50/D30,"") -> 12.94450229 | E51: =IFERROR(E50/E30,"") -> 6.952280391 | F51: 4.724803769 | G51: 3.630528566 | H51: 2.922245955 | I51: 2.445587574 | J51: 2.102952175 | K51: 1.960236548 | L51: 1.745765869 | M51: 1.573768476 | N51: 1.452343887 | O51: 1.425574123 | P51: 1.460464716 | Q51: 1.44680217 | R51: 1.433403412 | S51: 1.420260875 | T51: 1.407367279 | U51: 1.406714758 | V51: 1.406063228 | W51: 1.405412689 | X51: 1.404763136 | Y51: 1.404114568 | Z51: 1.403466983 | AA51: 1.402820378
A53: P25999 | B53: CCT | D53: =IFERROR(D30-D32-D50,"") -> -9881.839722 | E53: =IFERROR(E30-E32-E50,"") -> -9521.406521 | F53: -9006.914129 | G53: -8624.064921 | H53: -8103.358657 | I53: -7579.545455 | J53: -7052.625318 | K53: -7125.989585 | L53: -6592.855574 | M53: -6056.614628 | N53: -5602.241404 | O53: -5502.848714 | P53: -5810.077426 | Q53: -5768.80162 | R53: -5727.525815 | S53: -5686.250009 | T53: -5644.974203 | U53: -5669.030194 | V53: -5693.086184 | W53: -5717.142174 | X53: -5741.198164 | Y53: -5765.254155 | Z53: -5789.310145 | AA53: -5813.366135
B54: CBT | D54: =IFERROR(D53/D30,"") -> -14.08058759 | E54: =IFERROR(E53/E30,"") -> -7.138579076 | F54: -4.570521837 | G54: -3.301230816 | H54: -2.486477142 | I54: -1.938288276 | J54: -1.544338601 | K54: -1.363054289 | L54: -1.118566641 | M54: -0.9225678581 | N54: -0.7847756214 | O54: -0.7562782693 | P54: -0.7921920763 | Q54: -0.7788969552 | R54: -0.7658585277 | S54: -0.7530694305 | T54: -0.7405225798 | U54: -0.7431127524 | V54: -0.7456989885 | W54: -0.748281297 | X54: -0.7508596868 | Y54: -0.7534341669 | Z54: -0.7560047461 | AA54: -0.7585714332
